[Event "Live Chess"]
[Site "Chess.com"]
[Date "2023.05.20"]
[Round "-"]
[White "NAZRIZ1977"]
[Black "Jeffaroow"]
[Result "1-0"]
[WhiteElo "2115"]
[BlackElo "451"]
[TimeControl "300"]
[EndTime "9:46:17 PDT"]
[Termination "NAZRIZ1977 won by resignation"]

1. c4 {[%clk 0:04:58.8]} 1... e5 {[%clk 0:04:58.5]} 2. g3 {[%clk 0:04:58.1]}
2... d5 {[%clk 0:04:55.8]} 3. cxd5 {[%clk 0:04:55.4]} 3... Qxd5 {[%clk 0:04:54]}
4. Nf3 {[%clk 0:04:54.8]} 4... e4 {[%clk 0:04:52.1]} 5. Nc3 {[%clk 0:04:53.4]}
5... Qc6 {[%clk 0:04:43.1]} 6. e3 {[%clk 0:04:51.3]} 6... exf3 {[%clk 0:04:42]}
7. Bb5 {[%clk 0:04:50.2]} 7... Bd7 {[%clk 0:04:28.2]} 8. Bxc6 {[%clk 0:04:48.5]}
8... Bxc6 {[%clk 0:04:27.4]} 9. d4 {[%clk 0:04:48.1]} 9... Nd7 {[%clk
0:04:25.8]} 10. Bd2 {[%clk 0:04:47]} 10... O-O-O {[%clk 0:04:21.3]} 11. Qb3
{[%clk 0:04:46.1]} 11... Nb6 {[%clk 0:04:19.9]} 12. Qxf7 {[%clk 0:04:40.5]}
12... Nh6 {[%clk 0:04:09.7]} 13. Qb3 {[%clk 0:04:37.8]} 13... Bd5 {[%clk
0:04:02.9]} 14. Qc2 {[%clk 0:04:35.4]} 14... Nc4 {[%clk 0:03:54.7]} 15. Nxd5
{[%clk 0:04:29.3]} 15... Rxd5 {[%clk 0:03:52.7]} 16. Qxc4 {[%clk 0:04:28.1]}
16... c6 {[%clk 0:03:43.8]} 17. Rc1 {[%clk 0:04:26.6]} 17... Nf7 {[%clk
0:03:36.8]} 18. Qxd5 {[%clk 0:04:25.4]} 1-0

[Event "Live Chess"]
[Site "Chess.com"]
[Date "2023.05.20"]
[Round "-"]
[White "martinsmartin63"]
[Black "Tema1107"]
[Result "0-1"]
[WhiteElo "760"]
[BlackElo "1964"]
[TimeControl "300"]
[EndTime "9:46:22 PDT"]
[Termination "Tema1107 won by resignation"]

1. d4 {[%clk 0:04:57.1]} 1... Nf6 {[%clk 0:04:58]} 2. Nf3 {[%clk 0:04:52.8]}
2... d5 {[%clk 0:04:54.9]} 3. Nc3 {[%clk 0:04:48.5]} 3... Bf5 {[%clk 0:04:53.2]}
4. e3 {[%clk 0:04:44.5]} 4... c6 {[%clk 0:04:50.6]} 5. Be2 {[%clk 0:04:41.1]}
5... Nbd7 {[%clk 0:04:45.6]} 6. Bd2 {[%clk 0:04:35.6]} 6... g6 {[%clk
0:04:42.3]} 7. Ng5 {[%clk 0:04:22.7]} 7... h6 {[%clk 0:04:35.2]} 8. Nh3 {[%clk
0:04:11.9]} 8... Bxh3 {[%clk 0:04:32.5]} 9. gxh3 {[%clk 0:04:08.5]} 9... Bg7
{[%clk 0:04:32.4]} 10. Bg4 {[%clk 0:04:02]} 10... e5 {[%clk 0:04:29.2]} 11. dxe5
{[%clk 0:03:52.7]} 11... Nxe5 {[%clk 0:04:29.1]} 12. Be2 {[%clk 0:03:39.8]}
12... O-O {[%clk 0:04:24.6]} 13. e4 {[%clk 0:03:26.1]} 13... d4 {[%clk 0:03:50]}
14. Nb1 {[%clk 0:03:14.1]} 14... Nxe4 {[%clk 0:03:38.4]} 15. Bf4 {[%clk
0:03:03.8]} 15... Qh4 {[%clk 0:03:13.1]} 16. Bg3 {[%clk 0:02:53.9]} 16... Nxg3
{[%clk 0:03:07.7]} 17. fxg3 {[%clk 0:02:51.2]} 17... Qe4 {[%clk 0:02:12.1]} 18.
Rf1 {[%clk 0:02:35.1]} 18... Rad8 {[%clk 0:02:06]} 19. Rf4 {[%clk 0:02:20.1]}
19... Qh1+ {[%clk 0:02:02.9]} 20. Rf1 {[%clk 0:02:16.8]} 20... Qxh2 {[%clk
0:02:00.5]} 21. Rf2 {[%clk 0:02:12.2]} 21... Qxg3 {[%clk 0:01:53]} 22. Kf1
{[%clk 0:02:06.5]} 22... Rfe8 {[%clk 0:01:40.8]} 23. Rg2 {[%clk 0:02:03]} 23...
Qxh3 {[%clk 0:01:37]} 24. Bg4 {[%clk 0:01:57.8]} 24... Nxg4 {[%clk 0:01:28.7]}
25. Qxg4 {[%clk 0:01:53.3]} 25... Qe3 {[%clk 0:01:19.8]} 26. Re2 {[%clk
0:01:37.2]} 26... Qc1+ {[%clk 0:01:11.2]} 27. Re1 {[%clk 0:01:32.1]} 27... Qxe1+
{[%clk 0:01:04.7]} 0-1

[Event "Live Chess"]
[Site "Chess.com"]
[Date "2023.05.20"]
[Round "-"]
[White "Albul"]
[Black "JoshMcK"]
[Result "0-1"]
[WhiteElo "2178"]
[BlackElo "1555"]
[TimeControl "300"]
[EndTime "9:46:27 PDT"]
[Termination "JoshMcK won on time"]

1. e4 {[%clk 0:04:57.9]} 1... c6 {[%clk 0:04:57.8]} 2. d4 {[%clk 0:04:56.4]}
2... d5 {[%clk 0:04:57.2]} 3. e5 {[%clk 0:04:56.1]} 3... c5 {[%clk 0:04:55.7]}
4. c3 {[%clk 0:04:54.9]} 4... Nc6 {[%clk 0:04:52.1]} 5. Be3 {[%clk 0:04:51.9]}
5... Bf5 {[%clk 0:04:47.5]} 6. Bd3 {[%clk 0:04:50.3]} 6... Bxd3 {[%clk
0:04:46.1]} 7. Qxd3 {[%clk 0:04:50]} 7... cxd4 {[%clk 0:04:44.2]} 8. cxd4 {[%clk
0:04:49]} 8... e6 {[%clk 0:04:43.5]} 9. Ne2 {[%clk 0:04:46.1]} 9... Nb4 {[%clk
0:04:42.4]} 10. Qd2 {[%clk 0:04:37.8]} 10... Rc8 {[%clk 0:04:38]} 11. Nbc3
{[%clk 0:04:37.1]} 11... Nc6 {[%clk 0:04:29.8]} 12. O-O {[%clk 0:04:32.8]} 12...
Nge7 {[%clk 0:04:29]} 13. g4 {[%clk 0:03:57.1]} 13... g6 {[%clk 0:04:12.9]} 14.
Bg5 {[%clk 0:03:47.8]} 14... h6 {[%clk 0:04:09.6]} 15. Bf6 {[%clk 0:03:46.2]}
15... Rg8 {[%clk 0:04:07.6]} 16. f4 {[%clk 0:03:44]} 16... Qb6 {[%clk 0:04:02]}
17. Kg2 {[%clk 0:03:40.6]} 17... Bg7 {[%clk 0:03:55.6]} 18. Bxg7 {[%clk
0:03:32.9]} 18... Rxg7 {[%clk 0:03:55.5]} 19. Rac1 {[%clk 0:03:25.8]} 19... a6
{[%clk 0:03:41.2]} 20. Na4 {[%clk 0:03:21.2]} 20... Qd8 {[%clk 0:03:32.5]} 21.
Nc5 {[%clk 0:03:13.1]} 21... Qb6 {[%clk 0:03:22.8]} 22. h3 {[%clk 0:03:06.9]}
22... h5 {[%clk 0:03:14.4]} 23. Rf2 {[%clk 0:02:59.2]} 23... Rc7 {[%clk
0:02:42.9]} 24. a3 {[%clk 0:02:07.5]} 24... hxg4 {[%clk 0:01:56.3]} 25. hxg4
{[%clk 0:02:04.8]} 25... Rh7 {[%clk 0:01:52.5]} 26. Kg3 {[%clk 0:01:49]} 26...
Nc8 {[%clk 0:01:33.9]} 27. b4 {[%clk 0:01:44.3]} 27... Qb5 {[%clk 0:01:27.4]}
28. Qd3 {[%clk 0:00:39.7]} 28... Qxd3+ {[%clk 0:01:15.4]} 29. Nxd3 {[%clk
0:00:38.8]} 29... Nb6 {[%clk 0:01:06.9]} 30. Nb2 {[%clk 0:00:22.1]} 30... Kd7
{[%clk 0:00:44.5]} 31. Rh2 {[%clk 0:00:16.5]} 31... Rxh2 {[%clk 0:00:39.4]} 32.
Kxh2 {[%clk 0:00:16.1]} 32... Rc8 {[%clk 0:00:31.1]} 33. Kg3 {[%clk 0:00:14]}
33... Nxd4 {[%clk 0:00:18.3]} 34. Rxc8 {[%clk 0:00:07.8]} 34... Nxe2+ {[%clk
0:00:16.7]} 35. Kf2 {[%clk 0:00:07.5]} 35... Kxc8 {[%clk 0:00:14.1]} 36. Kxe2
{[%clk 0:00:07.1]} 36... Nc4 {[%clk 0:00:12.2]} 37. Nxc4 {[%clk 0:00:05.7]}
37... dxc4 {[%clk 0:00:12.1]} 38. Kd2 {[%clk 0:00:05]} 38... b5 {[%clk
0:00:11.3]} 39. Kc3 {[%clk 0:00:03.6]} 39... Kc7 {[%clk 0:00:10.5]} 40. a4
{[%clk 0:00:02.9]} 40... Kb6 {[%clk 0:00:08.9]} 41. a5+ {[%clk 0:00:00.9]} 41...
Kc6 {[%clk 0:00:08]} 42. Kd4 {[%clk 0:00:00.4]} 42... Kc7 {[%clk 0:00:06.9]} 0-1

[Event "Live Chess"]
[Site "Chess.com"]
[Date "2023.05.20"]
[Round "-"]
[White "seabuck"]
[Black "LodeshChess"]
[Result "1-0"]
[WhiteElo "1825"]
[BlackElo "879"]
[TimeControl "300"]
[EndTime "9:46:27 PDT"]
[Termination "seabuck won on time"]

1. d4 {[%clk 0:04:58.1]} 1... Nf6 {[%clk 0:04:57.8]} 2. c4 {[%clk 0:04:57]} 2...
e6 {[%clk 0:04:57.1]} 3. Nc3 {[%clk 0:04:56]} 3... Bb4 {[%clk 0:04:56.3]} 4. Qc2
{[%clk 0:04:55]} 4... d5 {[%clk 0:04:53.6]} 5. e3 {[%clk 0:04:47.7]} 5... O-O
{[%clk 0:04:50.7]} 6. Nf3 {[%clk 0:04:46]} 6... b6 {[%clk 0:04:45]} 7. a3 {[%clk
0:04:36.5]} 7... Bd6 {[%clk 0:04:38.2]} 8. b4 {[%clk 0:04:27.6]} 8... Bb7 {[%clk
0:04:28.1]} 9. c5 {[%clk 0:04:06.4]} 9... bxc5 {[%clk 0:04:26.1]} 10. bxc5
{[%clk 0:04:05]} 10... Be7 {[%clk 0:04:24.5]} 11. Bd3 {[%clk 0:03:57.8]} 11...
Ba6 {[%clk 0:04:20.8]} 12. O-O {[%clk 0:03:49.8]} 12... c6 {[%clk 0:04:20]} 13.
Rb1 {[%clk 0:03:47.1]} 13... Bxd3 {[%clk 0:04:17.1]} 14. Qxd3 {[%clk 0:03:45.5]}
14... Nbd7 {[%clk 0:04:14.7]} 15. Bd2 {[%clk 0:03:43.1]} 15... a6 {[%clk
0:04:10.1]} 16. Na4 {[%clk 0:03:34]} 16... Rb8 {[%clk 0:04:04.7]} 17. h3 {[%clk
0:03:18.1]} 17... Qc7 {[%clk 0:03:53.2]} 18. Rfc1 {[%clk 0:02:57.3]} 18... Ne4
{[%clk 0:03:50.3]} 19. Be1 {[%clk 0:02:55.3]} 19... a5 {[%clk 0:03:19.7]} 20.
Nc3 {[%clk 0:02:50.4]} 20... Nxc3 {[%clk 0:03:10]} 21. Qxc3 {[%clk 0:02:46.5]}
21... Nf6 {[%clk 0:03:06.8]} 22. Qxa5 {[%clk 0:02:43.8]} 22... Qxa5 {[%clk
0:02:53.7]} 23. Bxa5 {[%clk 0:02:41.3]} 23... Ra8 {[%clk 0:02:53.4]} 24. Bb4
{[%clk 0:02:40.4]} 24... Ne4 {[%clk 0:02:42.6]} 25. Ne5 {[%clk 0:02:37.6]} 25...
Ra6 {[%clk 0:02:37]} 26. f3 {[%clk 0:02:35.3]} 26... Ng3 {[%clk 0:02:22]} 27.
Rc2 {[%clk 0:02:21.2]} 27... Nf5 {[%clk 0:02:09.9]} 28. Rb3 {[%clk 0:02:13.2]}
28... Rfa8 {[%clk 0:01:41.3]} 29. g4 {[%clk 0:02:06.3]} 29... Nh4 {[%clk
0:01:25.8]} 30. Kf2 {[%clk 0:02:04.1]} 30... Bd8 {[%clk 0:01:03.2]} 31. Ra2
{[%clk 0:01:55.9]} 31... Rb8 {[%clk 0:00:55.8]} 32. Rbb2 {[%clk 0:01:41.5]}
32... Ng6 {[%clk 0:00:35.8]} 33. Nxg6 {[%clk 0:01:38.7]} 33... hxg6 {[%clk
0:00:35.4]} 34. e4 {[%clk 0:01:32.4]} 34... Ba5 {[%clk 0:00:24.1]} 35. Bxa5
{[%clk 0:01:25.6]} 35... Rxb2+ {[%clk 0:00:23.2]} 36. Rxb2 {[%clk 0:01:24]}
36... Rxa5 {[%clk 0:00:22.8]} 37. Rb3 {[%clk 0:01:21.4]} 37... Kf8 {[%clk
0:00:18.1]} 38. Ke3 {[%clk 0:01:20]} 38... Ke7 {[%clk 0:00:17.6]} 39. exd5
{[%clk 0:01:18]} 39... cxd5 {[%clk 0:00:15.9]} 40. Kd3 {[%clk 0:01:08.4]} 40...
Kd7 {[%clk 0:00:15]} 41. Kc3 {[%clk 0:01:06.2]} 41... Kc6 {[%clk 0:00:14.1]} 42.
Rb6+ {[%clk 0:01:02.5]} 42... Kd7 {[%clk 0:00:11.7]} 43. Kb4 {[%clk 0:01:00.9]}
43... Ra8 {[%clk 0:00:09.5]} 44. Rb7+ {[%clk 0:00:59.5]} 44... Ke8 {[%clk
0:00:07.7]} 45. a4 {[%clk 0:00:57.7]} 45... Kd8 {[%clk 0:00:06]} 46. a5 {[%clk
0:00:54.3]} 46... Kc8 {[%clk 0:00:04.2]} 47. c6 {[%clk 0:00:49.7]} 47... Rb8
{[%clk 0:00:00.8]} 48. a6 {[%clk 0:00:47]} 1-0

[Event "Live Chess"]
[Site "Chess.com"]
[Date "2023.05.20"]
[Round "-"]
[White "SimpleHarmonic1"]
[Black "hello505050"]
[Result "1-0"]
[WhiteElo "2076"]
[BlackElo "1075"]
[TimeControl "300"]
[EndTime "9:46:29 PDT"]
[Termination "SimpleHarmonic1 won by checkmate"]

1. e4 {[%clk 0:04:58.8]} 1... e5 {[%clk 0:04:59]} 2. Nf3 {[%clk 0:04:57.4]} 2...
Nc6 {[%clk 0:04:54.8]} 3. d4 {[%clk 0:04:54.7]} 3... exd4 {[%clk 0:04:53.1]} 4.
Nxd4 {[%clk 0:04:54.6]} 4... Nxd4 {[%clk 0:04:52.6]} 5. Qxd4 {[%clk 0:04:51.8]}
5... b6 {[%clk 0:04:51.9]} 6. Bc4 {[%clk 0:04:49.8]} 6... Qf6 {[%clk 0:04:46]}
7. e5 {[%clk 0:04:42.2]} 7... Qf5 {[%clk 0:04:33.9]} 8. Nc3 {[%clk 0:04:20.8]}
8... Bc5 {[%clk 0:04:27.5]} 9. Qd2 {[%clk 0:03:59.5]} 9... f6 {[%clk 0:04:18.5]}
10. O-O {[%clk 0:03:51.2]} 10... d6 {[%clk 0:04:08.4]} 11. Bd5 {[%clk
0:03:43.9]} 11... dxe5 {[%clk 0:04:00.9]} 12. Bxa8 {[%clk 0:03:38.5]} 12... Qh5
{[%clk 0:03:54.6]} 13. Bc6+ {[%clk 0:03:36.2]} 13... Kf7 {[%clk 0:03:45.9]} 14.
Qd5+ {[%clk 0:03:23.5]} 14... Be6 {[%clk 0:03:42.9]} 15. Be8+ {[%clk 0:03:20.3]}
15... Kxe8 {[%clk 0:03:37.5]} 16. Qxe6+ {[%clk 0:03:18.6]} 16... Kd8 {[%clk
0:03:26.4]} 17. Be3 {[%clk 0:02:51.9]} 17... Bd6 {[%clk 0:03:22.3]} 18. Rad1
{[%clk 0:02:48.1]} 18... Ne7 {[%clk 0:03:04.9]} 19. Nb5 {[%clk 0:02:38.9]} 19...
Ke8 {[%clk 0:02:56.2]} 20. Rxd6 {[%clk 0:02:32.2]} 20... cxd6 {[%clk 0:02:54.9]}
21. Nxd6+ {[%clk 0:02:30.8]} 21... Kd8 {[%clk 0:02:53.3]} 22. g4 {[%clk
0:02:11.3]} 22... Qh3 {[%clk 0:02:38.3]} 23. Rd1 {[%clk 0:02:03.8]} 23... h5
{[%clk 0:02:24.9]} 24. Nf7+ {[%clk 0:01:59.9]} 24... Ke8 {[%clk 0:02:18.1]} 25.
Rd8# {[%clk 0:01:58.1]} 1-0

[Event "Live Chess"]
[Site "Chess.com"]
[Date "2023.05.20"]
[Round "-"]
[White "amazinggoalkeeper"]
[Black "xx_blindpuffin_xx"]
[Result "0-1"]
[WhiteElo "499"]
[BlackElo "2188"]
[TimeControl "300"]
[EndTime "9:46:32 PDT"]
[Termination "xx_blindpuffin_xx won by checkmate"]

1. e4 {[%clk 0:04:57.7]} 1... d6 {[%clk 0:04:55.8]} 2. d4 {[%clk 0:04:56.3]}
2... Nd7 {[%clk 0:04:55.1]} 3. Nf3 {[%clk 0:04:54.5]} 3... c5 {[%clk 0:04:54.3]}
4. d5 {[%clk 0:04:52.4]} 4... Ngf6 {[%clk 0:04:52.8]} 5. Bd3 {[%clk 0:04:50.8]}
5... g6 {[%clk 0:04:51.7]} 6. O-O {[%clk 0:04:48.6]} 6... Bg7 {[%clk 0:04:47.3]}
7. Be3 {[%clk 0:04:47.3]} 7... O-O {[%clk 0:04:39.6]} 8. Nc3 {[%clk 0:04:44.4]}
8... a6 {[%clk 0:04:36.6]} 9. h3 {[%clk 0:04:35.7]} 9... b5 {[%clk 0:04:35.3]}
10. b3 {[%clk 0:04:29.9]} 10... Qc7 {[%clk 0:04:33.3]} 11. Ne2 {[%clk
0:04:27.7]} 11... c4 {[%clk 0:04:32.1]} 12. bxc4 {[%clk 0:04:25]} 12... bxc4
{[%clk 0:04:32]} 13. Bxc4 {[%clk 0:04:14.5]} 13... Qxc4 {[%clk 0:04:30.6]} 14.
Qd3 {[%clk 0:04:11.5]} 14... Qa4 {[%clk 0:04:21.6]} 15. Bd4 {[%clk 0:04:06.4]}
15... a5 {[%clk 0:04:12.8]} 16. Ng5 {[%clk 0:04:05.3]} 16... Ba6 {[%clk
0:04:10.9]} 17. Qe3 {[%clk 0:04:01.8]} 17... Bxe2 {[%clk 0:04:08.6]} 18. Qxe2
{[%clk 0:04:00.1]} 18... Qxd4 {[%clk 0:04:07.1]} 19. Qd3 {[%clk 0:03:58.7]}
19... Qxd3 {[%clk 0:04:05.5]} 20. cxd3 {[%clk 0:03:57.7]} 20... Nc5 {[%clk
0:04:05.4]} 21. d4 {[%clk 0:03:56.8]} 21... Ncxe4 {[%clk 0:04:04.1]} 22. Nxe4
{[%clk 0:03:55.2]} 22... Nxe4 {[%clk 0:04:04]} 23. Rfe1 {[%clk 0:03:54]} 23...
Bxd4 {[%clk 0:04:00.4]} 24. Rxe4 {[%clk 0:03:52.2]} 24... Bxa1 {[%clk
0:03:59.3]} 25. Rxe7 {[%clk 0:03:50.9]} 25... Rfc8 {[%clk 0:03:57.7]} 26. Rd7
{[%clk 0:03:49.4]} 26... Be5 {[%clk 0:03:52.9]} 27. g3 {[%clk 0:03:48.1]} 27...
Rc2 {[%clk 0:03:50.1]} 28. f4 {[%clk 0:03:46.9]} 28... Rb8 {[%clk 0:03:49]} 29.
fxe5 {[%clk 0:03:45.7]} 29... Rb1# {[%clk 0:03:47.9]} 0-1

[Event "Live Chess"]
[Site "Chess.com"]
[Date "2023.05.20"]
[Round "-"]
[White "PaulHumphreys"]
[Black "MaximKris"]
[Result "0-1"]
[WhiteElo "1366"]
[BlackElo "1822"]
[TimeControl "300"]
[EndTime "9:46:38 PDT"]
[Termination "MaximKris won by resignation"]

1. d4 {[%clk 0:04:55.9]} 1... d5 {[%clk 0:04:59.2]} 2. Nc3 {[%clk 0:04:54.2]}
2... Nf6 {[%clk 0:04:58.7]} 3. Bf4 {[%clk 0:04:53]} 3... Bf5 {[%clk 0:04:58.3]}
4. e3 {[%clk 0:04:50]} 4... e6 {[%clk 0:04:57.3]} 5. Nf3 {[%clk 0:04:48.8]} 5...
Bd6 {[%clk 0:04:56.7]} 6. Ne5 {[%clk 0:04:47.2]} 6... Nbd7 {[%clk 0:04:55]} 7.
g4 {[%clk 0:04:43.6]} 7... Bxe5 {[%clk 0:04:48.2]} 8. dxe5 {[%clk 0:04:20.1]}
8... Nxg4 {[%clk 0:04:39.7]} 9. h3 {[%clk 0:04:06.4]} 9... Ngxe5 {[%clk
0:04:29.3]} 10. Qd4 {[%clk 0:03:32.1]} 10... c5 {[%clk 0:04:24.1]} 11. Qa4
{[%clk 0:03:25.2]} 11... O-O {[%clk 0:03:44.2]} 12. Bb5 {[%clk 0:03:15.2]} 12...
a6 {[%clk 0:03:32.7]} 13. Bxd7 {[%clk 0:03:08.8]} 13... Nxd7 {[%clk 0:03:32.6]}
14. Rg1 {[%clk 0:03:05.6]} 14... b5 {[%clk 0:03:27.9]} 15. Qb3 {[%clk
0:02:53.9]} 15... b4 {[%clk 0:03:15.7]} 16. Ne2 {[%clk 0:02:47.8]} 16... a5
{[%clk 0:03:11.8]} 17. c3 {[%clk 0:02:33]} 17... c4 {[%clk 0:03:06.6]} 18. Qd1
{[%clk 0:02:27.4]} 18... Nc5 {[%clk 0:02:59.2]} 19. Bh6 {[%clk 0:02:21.7]} 19...
Nd3+ {[%clk 0:02:52.2]} 20. Kf1 {[%clk 0:02:19.8]} 20... Bxh3+ {[%clk
0:02:49.8]} 0-1

[Event "Live Chess"]
[Site "Chess.com"]
[Date "2023.05.20"]
[Round "-"]
[White "SaraTang"]
[Black "chrisbradgate"]
[Result "0-1"]
[WhiteElo "164"]
[BlackElo "845"]
[TimeControl "300"]
[EndTime "9:46:39 PDT"]
[Termination "chrisbradgate won by checkmate"]

1. e4 {[%clk 0:04:59]} 1... e5 {[%clk 0:04:51.2]} 2. Bc4 {[%clk 0:04:57.3]} 2...
h6 {[%clk 0:04:47.6]} 3. Qf3 {[%clk 0:04:55.5]} 3... f6 {[%clk 0:04:38.7]} 4.
Qf5 {[%clk 0:04:44.3]} 4... d5 {[%clk 0:04:24.8]} 5. exd5 {[%clk 0:04:42.1]}
5... Bxf5 {[%clk 0:04:22.3]} 6. d6 {[%clk 0:04:37.3]} 6... Qxd6 {[%clk
0:04:17.8]} 7. Bxg8 {[%clk 0:04:33.9]} 7... Rxg8 {[%clk 0:04:15.3]} 8. Nf3
{[%clk 0:04:28.5]} 8... Bxc2 {[%clk 0:04:12.2]} 9. Nxe5 {[%clk 0:04:25.6]} 9...
Qxe5+ {[%clk 0:04:09.9]} 10. Kf1 {[%clk 0:04:21.2]} 10... Bd3+ {[%clk 0:04:08]}
11. Kg1 {[%clk 0:04:16]} 11... Qe1# {[%clk 0:04:06.5]} 0-1

[Event "Live Chess"]
[Site "Chess.com"]
[Date "2023.05.20"]
[Round "-"]
[White "martynstanley"]
[Black "yeetpizza74"]
[Result "1-0"]
[WhiteElo "991"]
[BlackElo "449"]
[TimeControl "300"]
[EndTime "9:46:40 PDT"]
[Termination "martynstanley won by checkmate"]

1. d4 {[%clk 0:04:58.5]} 1... e5 {[%clk 0:04:57.7]} 2. dxe5 {[%clk 0:04:56.2]}
2... Nc6 {[%clk 0:04:56.6]} 3. f4 {[%clk 0:04:55.4]} 3... f6 {[%clk 0:04:53]} 4.
exf6 {[%clk 0:04:53.3]} 4... Qxf6 {[%clk 0:04:50.1]} 5. e3 {[%clk 0:04:52]} 5...
d5 {[%clk 0:04:45.3]} 6. Bd3 {[%clk 0:04:50.8]} 6... Bf5 {[%clk 0:04:42.6]} 7.
Nf3 {[%clk 0:04:48.9]} 7... Bg4 {[%clk 0:04:38.1]} 8. O-O {[%clk 0:04:47.6]}
8... O-O-O {[%clk 0:04:26.5]} 9. h3 {[%clk 0:04:44.6]} 9... Bxf3 {[%clk
0:04:24.7]} 10. Qxf3 {[%clk 0:04:43.8]} 10... Qd6 {[%clk 0:04:13.5]} 11. Nd2
{[%clk 0:04:43.2]} 11... d4 {[%clk 0:04:05.5]} 12. Ne4 {[%clk 0:04:39.8]} 12...
Qd7 {[%clk 0:03:42.4]} 13. exd4 {[%clk 0:04:35.7]} 13... Nxd4 {[%clk 0:03:40.1]}
14. Qe3 {[%clk 0:04:33.1]} 14... Nxc2 {[%clk 0:03:34.7]} 15. Bxc2 {[%clk
0:04:30.1]} 15... Nf6 {[%clk 0:03:21.9]} 16. Rd1 {[%clk 0:04:28]} 16... Re8
{[%clk 0:03:18.9]} 17. Rxd7 {[%clk 0:04:26.4]} 17... Kxd7 {[%clk 0:03:15.9]} 18.
Qd3+ {[%clk 0:04:24]} 18... Bd6 {[%clk 0:03:09.1]} 19. Ba4+ {[%clk 0:04:18.5]}
19... Ke6 {[%clk 0:03:01.5]} 20. Bxe8 {[%clk 0:04:13.9]} 20... Rxe8 {[%clk
0:02:59.8]} 21. Qc4+ {[%clk 0:04:10.7]} 21... Nd5 {[%clk 0:02:55.6]} 22. Nc3
{[%clk 0:04:02]} 22... Bb4 {[%clk 0:02:49]} 23. Qxd5+ {[%clk 0:04:00.2]} 23...
Kf6 {[%clk 0:02:44.1]} 24. Qd4+ {[%clk 0:03:52.5]} 24... Kf7 {[%clk 0:02:40.7]}
25. Qxb4 {[%clk 0:03:51.1]} 25... h6 {[%clk 0:02:35.5]} 26. Qc4+ {[%clk
0:03:49]} 26... Kf8 {[%clk 0:02:32]} 27. Ne4 {[%clk 0:03:45.9]} 27... c6 {[%clk
0:02:22.9]} 28. b3 {[%clk 0:03:45]} 28... b5 {[%clk 0:02:21.5]} 29. Ba3+ {[%clk
0:03:43.1]} 29... Re7 {[%clk 0:02:04.9]} 30. Bxe7+ {[%clk 0:03:40.5]} 30... Kxe7
{[%clk 0:02:03.7]} 31. Qxc6 {[%clk 0:03:39.7]} 31... Kf7 {[%clk 0:02:01.7]} 32.
Qd7+ {[%clk 0:03:36]} 32... Kg6 {[%clk 0:02:00.2]} 33. Qxa7 {[%clk 0:03:34.2]}
33... b4 {[%clk 0:01:58.5]} 34. Rc1 {[%clk 0:03:31.4]} 34... Kf5 {[%clk
0:01:56.9]} 35. Ng3+ {[%clk 0:03:30]} 35... Kxf4 {[%clk 0:01:55.1]} 36. Kh2
{[%clk 0:03:29.3]} 36... g5 {[%clk 0:01:53.2]} 37. Rc4+ {[%clk 0:03:28.1]} 37...
Ke5 {[%clk 0:01:51.4]} 38. Qc5+ {[%clk 0:03:26.2]} 38... Kf6 {[%clk 0:01:49.6]}
39. Qd4+ {[%clk 0:03:24.5]} 39... Kg6 {[%clk 0:01:48.2]} 40. Rc5 {[%clk
0:03:23.5]} 40... Kf7 {[%clk 0:01:46.3]} 41. Qd6 {[%clk 0:03:21.9]} 41... Ke8
{[%clk 0:01:44.4]} 42. Rc7 {[%clk 0:03:17.5]} 42... h5 {[%clk 0:01:37.4]} 43.
Qd8+ {[%clk 0:03:15.8]} 43... Kxd8 {[%clk 0:01:35.7]} 44. Rh7 {[%clk 0:03:14.2]}
44... h4 {[%clk 0:01:31.2]} 45. Nf5 {[%clk 0:03:12.7]} 45... Ke8 {[%clk
0:01:27.8]} 46. Rh5 {[%clk 0:03:11.4]} 46... Kf8 {[%clk 0:01:23.5]} 47. Rxg5
{[%clk 0:03:10.2]} 47... Kf7 {[%clk 0:01:22]} 48. Nxh4 {[%clk 0:03:09.3]} 48...
Kf6 {[%clk 0:01:20.9]} 49. Rb5 {[%clk 0:03:08.4]} 49... Ke6 {[%clk 0:01:19.5]}
50. Kg3 {[%clk 0:03:07.9]} 50... Kd6 {[%clk 0:01:18.4]} 51. Rxb4 {[%clk
0:03:07.5]} 51... Kc5 {[%clk 0:01:17.2]} 52. Re4 {[%clk 0:03:06.3]} 52... Kd5
{[%clk 0:01:15.6]} 53. Rf4 {[%clk 0:03:05.2]} 53... Ke5 {[%clk 0:01:14.4]} 54.
a4 {[%clk 0:03:04.6]} 54... Kd5 {[%clk 0:01:12.7]} 55. Rf1 {[%clk 0:03:03.7]}
55... Kc5 {[%clk 0:01:11.6]} 56. Rb1 {[%clk 0:03:02.7]} 56... Kb4 {[%clk
0:01:10.3]} 57. a5 {[%clk 0:03:01.2]} 57... Kxa5 {[%clk 0:01:09]} 58. b4+ {[%clk
0:03:00.7]} 58... Kb5 {[%clk 0:01:07.4]} 59. Kf4 {[%clk 0:02:59.5]} 59... Kc6
{[%clk 0:01:03.6]} 60. g4 {[%clk 0:02:59.1]} 60... Kd6 {[%clk 0:01:01.6]} 61. g5
{[%clk 0:02:58.6]} 61... Ke6 {[%clk 0:01:01]} 62. g6 {[%clk 0:02:58.1]} 62...
Kf6 {[%clk 0:00:59.7]} 63. b5 {[%clk 0:02:58]} 63... Kg7 {[%clk 0:00:57.6]} 64.
b6 {[%clk 0:02:57.5]} 64... Kh6 {[%clk 0:00:56.8]} 65. b7 {[%clk 0:02:57]} 65...
Kh5 {[%clk 0:00:55.7]} 66. Kg3 {[%clk 0:02:56]} 66... Kg5 {[%clk 0:00:53.6]} 67.
b8=Q {[%clk 0:02:55.1]} 67... Kh5 {[%clk 0:00:51.8]} 68. Qb5+ {[%clk 0:02:53.9]}
68... Kh6 {[%clk 0:00:50.1]} 69. Qb3 {[%clk 0:02:49.8]} 69... Kg5 {[%clk
0:00:48.4]} 70. Ra1 {[%clk 0:02:49]} 70... Kh5 {[%clk 0:00:46.8]} 71. Ra5+
{[%clk 0:02:47.9]} 71... Kh6 {[%clk 0:00:45.3]} 72. Qb6 {[%clk 0:02:46.3]} 72...
Kg7 {[%clk 0:00:43.7]} 73. Ra7+ {[%clk 0:02:44.4]} 73... Kh6 {[%clk 0:00:42.5]}
74. Nf5+ {[%clk 0:02:43.2]} 74... Kg5 {[%clk 0:00:40.7]} 75. g7 {[%clk
0:02:41.6]} 75... Kxf5 {[%clk 0:00:39.1]} 76. g8=Q {[%clk 0:02:40.1]} 76... Ke4
{[%clk 0:00:38.1]} 77. Qg4+ {[%clk 0:02:39.2]} 77... Kd3 {[%clk 0:00:36.9]} 78.
Qd6+ {[%clk 0:02:37.5]} 78... Ke3 {[%clk 0:00:35.5]} 79. Qf3# {[%clk 0:02:36.2]}
1-0